bitfinex/quotes_ETHUSD_20260312
["timestamp","ask_amount","ask_price","bid_price","bid_amount"]
[1773331227953,0.04824224,2072.8,2071.7,0.79194292]
[1773331228143,1.20615622,2072.7,2071.8,1.20668018]
[1773331228337,0.04824224,2072.6,2071.8,1.20668018]
[1773331228544,0.04824224,2072.6,2071.8,1.9586231]
[1773331228970,0.04824224,2072.6,2072.0,0.75194292]
[1773331229160,0.04824224,2072.7,2072.0,0.75194292]
[1773331229537,0.04824224,2072.7,2071.9,2.58485217]
[1773331230046,0.04824224,2072.7,2071.8,1.20668018]
[1773331230047,0.76686529,2072.7,2071.8,1.20668018]
[1773331230243,0.76686529,2072.7,2071.7,4.82672072]
[1773331230444,1.92483746,2072.6,2071.7,4.82672072]
[1773331230642,0.04824224,2072.5,2071.7,4.82672072]
[1773331230972,0.04824224,2072.5,2072.3,0.001]
[1773331231658,0.04824224,2072.5,2072.0,0.001]
[1773331232738,1.20633082,2072.4,2072.0,0.001]
[1773331232952,0.04824224,2072.3,2072.0,0.001]
[1773331233752,0.76686529,2072.3,2071.8,0.001]
[1773331234635,1.20644725,2072.2,2071.8,0.001]
[1773331235073,5.5926543,2072.3,2071.8,0.001]
[1773331235074,1.25466357,2072.3,2071.8,0.001]
[1773331236167,0.71862305,2072.2,2071.8,0.001]
[1773331236475,0.04824224,2072.1,2071.8,0.001]
[1773331236678,1.2065637,2072.0,2071.8,0.001]
[1773331238471,1.2065637,2072.0,2071.5,0.01306865]
[1773331238472,0.71862305,2071.9,2071.5,0.01306865]
[1773331238772,2.55677061,2072.1,2071.5,0.01306865]
[1773331238974,2.50852837,2072.1,2071.5,0.01306865]
[1773331240262,3.22715142,2072.1,2071.5,0.01306865]
[1773331240469,0.71862305,2072.0,2071.5,0.01306865]
[1773331240877,1.20662194,2071.9,2071.5,0.01306865]
[1773331241952,1.92524499,2071.9,2071.5,0.01306865]
[1773331242152,1.92524499,2071.9,2071.1,1.20706836]
[1773331242883,1.92524499,2071.9,2071.1,1.95901128]
[1773331243282,1.20662194,2071.9,2071.3,0.75194292]
[1773331244890,0.04824224,2071.8,2071.3,0.75194292]
[1773331245093,1.25492658,2071.8,2071.4,1.20691319]
[1773331245380,1.25492658,2071.8,2071.7,0.001]
[1773331245584,1.25492658,2071.8,2071.0,0.01207167]
[1773331245585,0.67903535,2071.7,2071.0,0.01207167]
[1773331245959,0.67903535,2071.7,2071.5,0.001]
[1773331246158,0.67903535,2071.7,2071.0,0.01207167]
[1773331246387,0.67903535,2071.7,2071.0,1.21921659]
[1773331246550,0.67903535,2071.7,2071.0,0.01207167]
[1773331246755,0.67903535,2071.7,2071.2,0.001]
[1773331246956,1.20679667,2071.6,2071.2,0.001]
[1773331247166,1.88583202,2071.6,2071.2,0.001]
[1773331249307,1.20679667,2071.6,2071.2,0.001]
[1773331250803,0.04824224,2071.5,2071.2,0.001]
[1773331251184,1.20691319,2071.4,2071.2,0.001]
[1773331252074,1.20691319,2071.4,2071.0,1e-08]
[1773331252670,0.04824224,2071.5,2071.0,1.88606859]
[1773331253004,0.04824224,2071.8,2071.1,0.67893752]
[1773331253178,1.20679667,2071.6,2071.1,1.8859856]
[1773331253370,0.04824224,2071.5,2071.1,1.8859856]
[1773331253799,1.21867663,2072.0,2071.3,0.67893752]
[1773331254891,1.21867663,2072.0,2071.0,1.88607811]
[1773331254892,0.7313786,2071.9,2071.0,1.88607811]
[1773331255204,1.20668018,2071.8,2071.0,1.88607811]
[1773331256442,1.20668018,2071.8,2071.1,0.67893752]
[1773331257115,0.01207166,2071.5,2071.1,1.88599097]
[1773331257310,1.21893168,2071.5,2071.0,1.20711802]
[1773331257643,1.95031028,2071.5,2070.7,1.20728297]
[1773331258341,1.95031028,2071.5,2070.7,1.88622049]
[1773331258945,1.21893168,2071.5,2070.8,0.67893752]
[1773331259241,1.21893168,2071.5,2070.9,4.47099428]
[1773331259444,1.21893168,2071.5,2070.9,1.88614211]
[1773331259947,1.21893168,2071.5,2071.3,0.001]
[1773331260871,4.82921118,2071.6,2071.3,0.001]
[1773331260872,0.002,2071.6,2071.3,0.001]
[1773331261954,0.7333786,2071.6,2071.0,0.001]
[1773331262262,0.7333786,2071.6,2071.0,1.20814423]
[1773331262454,0.7333786,2071.6,2071.0,0.001]
[1773331263862,1.20685493,2071.5,2071.0,0.001]
[1773331264363,0.7313786,2071.4,2071.0,0.01307167]
[1773331264535,0.7313786,2071.4,2070.4,1.89850639]
[1773331264871,1.20685493,2071.5,2070.6,0.67893752]
[1773331265463,1.20685493,2071.5,2070.8,3.26378969]
[1773331265768,4.82941974,2071.6,2070.8,3.26378969]
[1773331265769,0.002,2071.6,2071.2,0.67893752]
[1773331266272,1.20870903,2071.8,2071.2,0.67893752]
[1773331266635,1.20870486,2071.8,2071.2,0.67893752]
[1773331266939,1.32506865,2072.0,2071.1,4.05685217]
[1773331266940,0.01206865,2072.0,2071.5,0.67893752]
[1773331267966,1.21863296,2072.0,2071.5,1.88575069]
[1773331268268,1.21863296,2072.0,2071.5,3.79166534]
[1773331268269,0.01206865,2072.0,2071.5,3.79166534]
[1773331268438,0.01206865,2072.0,2071.5,4.47060286]
[1773331268638,0.01206865,2072.0,2071.6,0.67893752]
[1773331268838,1.21865806,2072.0,2071.3,0.67893752]
[1773331269039,0.7313786,2071.9,2071.0,1.886036]
[1773331269665,0.7313786,2071.9,2070.7,0.065536]
[1773331269666,0.7313786,2071.9,2070.7,9.57079126]
[1773331270050,0.7313786,2071.7,2070.7,5.50809841]
[1773331270372,1.20668018,2071.8,2071.0,0.67893752]
[1773331270875,0.01207167,2071.5,2071.0,0.67893752]
[1773331272271,0.01207167,2071.5,2071.1,1.20708802]
[1773331272469,0.01207167,2071.5,2071.0,1.88604666]
[1773331273167,0.01207167,2071.5,2071.1,3.26963037]
[1773331273342,1.20673094,2071.8,2071.1,3.26963037]
[1773331273874,5.56972319,2072.0,2071.4,3.26963037]
[1773331273875,0.01206865,2072.0,2071.4,3.26963037]
[1773331274169,0.002,2072.1,2071.8,1.20668018]
[1773331274547,0.002,2072.3,2072.0,2.59069285]
[1773331275582,0.002,2072.6,2072.0,3.26963037]
[1773331276156,0.002,2072.6,2072.1,1.20650547]
[1773331279066,0.002,2072.6,2071.9,6.29937787]
[1773331279262,0.7333786,2072.6,2071.9,1.473]
[1773331280283,0.67346186,2072.4,2071.8,1.20662194]
[1773331281061,1.20824755,2072.6,2071.9,0.64086872]
[1773331281372,0.002,2072.7,2072.1,2.59069285]
[1773331281569,0.002,2072.7,2072.0,1.474]
[1773331282167,0.002,2072.9,2072.5,2.59069285]
[1773331282463,0.67546186,2072.9,2072.0,2.68052011]
[1773331283095,0.67546186,2072.9,2072.0,1.20652011]
[1773331284362,0.67346186,2072.7,2072.0,1.20652011]
[1773331286394,0.67346186,2072.7,2072.1,2.59069285]
[1773331286697,4.82623299,2072.9,2072.5,2.59069285]
[1773331286698,0.002,2072.9,2072.5,2.59069285]
[1773331287493,0.002,2073.2,2072.8,2.59069285]
[1773331288504,4.82460968,2073.6,2073.1,2.59069285]
[1773331288505,0.002,2073.6,2073.1,2.59069285]
[1773331288662,0.002,2073.6,2073.0,2.59069285]
[1773331289358,0.002,2073.6,2073.0,3.23156157]
[1773331290274,0.002,2073.6,2073.1,1.20592349]
[1773331290806,0.002,2073.8,2073.1,1.84679221]
[1773331290991,0.002,2073.8,2073.3,2.59069285]
[1773331291303,0.002,2073.8,2073.1,1.84679221]
[1773331291802,0.002,2073.8,2073.1,1.20592349]
[1773331292102,0.67546186,2073.8,2072.6,6.30184849]
[1773331292266,0.002,2072.7,2072.6,6.94271721]
[1773331292603,1.87903643,2073.7,2072.7,0.64086872]
[1773331293068,0.002,2073.0,2072.7,0.64086872]
[1773331293265,0.67346186,2073.7,2072.7,0.64086872]
[1773331293688,0.67346186,2073.7,2073.1,2.59069285]
[1773331294507,0.002,2073.8,2073.2,1.20586532]
[1773331294807,0.67346186,2074.0,2073.4,2.59069285]
[1773331296198,0.67346186,2074.0,2073.2,1.20586532]
[1773331296199,0.67346186,2073.9,2073.2,1.20586532]
[1773331296590,1.8789783,2073.8,2073.1,4.82346131]
[1773331297199,4.82360077,2074.1,2073.1,5.46433003]
[1773331297200,1.2054347,2074.0,2073.1,5.46433003]
[1773331297393,1.2054347,2074.0,2073.2,2.59069285]
[1773331297699,0.096478,2073.6,2073.2,2.59069285]
[1773331299099,0.096478,2073.6,2073.3,1.20580716]
[1773331301193,0.096478,2073.6,2073.2,4.82332133]
[1773331301388,1.87891446,2074.0,2073.2,4.82332133]
[1773331301588,1.87886962,2074.0,2073.3,2.59069285]
[1773331302311,1.87886962,2074.0,2073.2,5.46419005]
[1773331302612,1.87886962,2074.0,2072.4,5.2469217]
[1773331302613,0.67346186,2073.7,2072.6,1.48]
[1773331302908,0.67346186,2073.7,2072.7,2.59069285]
[1773331303402,0.67346186,2073.5,2072.8,1.20609803]
[1773331303603,0.67346186,2073.5,2072.6,1.48]
[1773331303604,0.67346186,2073.5,2072.6,1.20621441]
[1773331305126,2.59069285,2073.9,2072.6,1.20621441]
[1773331305127,0.64783942,2074.3,2073.4,2.59069285]
[1773331305335,0.64783942,2074.0,2072.9,1.481]
[1773331305538,0.64783942,2073.8,2073.0,1.20598166]
[1773331305728,0.64783942,2073.8,2072.9,2.68699753]
[1773331306230,0.002,2073.6,2072.9,2.68699753]
[1773331306530,0.64983942,2073.6,2072.9,2.68699753]
[1773331306827,0.64983942,2073.6,2073.0,0.001]
[1773331307393,1.20569086,2073.5,2073.0,0.001]
[1773331307594,1.85353028,2073.5,2073.0,0.001]
[1773331307831,0.64783942,2073.4,2073.0,0.001]
[1773331309701,1.85364658,2073.3,2073.0,0.001]
[1773331309902,0.64783942,2073.3,2073.0,0.001]
[1773331311710,1.85368856,2073.3,2073.0,0.001]
[1773331312312,1.85368856,2073.3,2072.8,0.001]
[1773331312313,0.6165953,2073.2,2072.8,0.001]
[1773331312641,1.20584914,2073.3,2072.3,0.001]
[1773331312642,0.6165953,2072.9,2072.3,0.001]
[1773331312843,0.6165953,2072.8,2072.0,2.2108631]
[1773331313013,0.6165953,2072.8,2072.0,0.001]
[1773331313459,0.6165953,2072.6,2072.0,0.001]
[1773331313947,0.6165953,2072.4,2072.0,0.001]
[1773331316316,1.20638903,2072.3,2072.0,0.001]
[1773331317840,1.82298433,2072.3,2072.0,0.001]
[1773331318242,0.6165953,2072.2,2071.8,0.001]
[1773331318428,1.82310077,2072.1,2071.8,0.001]
[1773331319954,1.316,2072.4,2071.8,0.001]
[1773331320118,2.5223374,2072.4,2072.0,0.001]
[1773331320669,1.82278035,2072.7,2072.0,2.59169285]
[1773331320877,0.002,2073.6,2072.7,0.64656308]
[1773331321154,0.002,2073.6,2072.9,3.23725593]
[1773331321518,0.002,2073.6,2073.0,0.64656308]
[1773331321723,0.6165953,2073.5,2072.4,2.59069285]
[1773331322046,0.6165953,2073.5,2072.4,4.06869285]
[1773331322622,1.20574901,2073.4,2072.5,1.85283569]
[1773331323938,0.6165953,2073.3,2072.4,1.20630356]
[1773331324542,1.20586532,2073.2,2072.3,4.82532329]
[1773331324850,1.8242684,2073.6,2072.5,0.64656308]
[1773331325853,1.8242684,2073.6,2072.9,2.59069285]
[1773331325854,0.002,2073.6,2072.9,2.59069285]
[1773331326024,0.6165953,2073.5,2072.5,0.64656308]
[1773331326351,0.6165953,2073.5,2072.5,2.12656308]
[1773331326522,0.6165953,2073.5,2072.6,0.64656308]
[1773331326723,1.82233446,2073.5,2072.7,1.20615622]
[1773331328828,1.82233446,2073.5,2072.7,2.59069285]
[1773331329970,0.002,2073.6,2072.8,0.64656308]
[1773331330127,0.002,2073.8,2073.3,2.59069285]
[1773331330731,0.002,2074.1,2073.5,7.41322371]
[1773331330928,0.002,2074.1,2073.6,1.20563271]
[1773331332726,0.6185953,2074.1,2073.5,1.20564788]
[1773331333266,0.6185953,2074.1,2072.7,2.68711682]
[1773331333267,0.6165953,2073.8,2072.7,2.68711682]
[1773331333553,5.28206383,2073.9,2072.8,4.0]
[1773331333554,0.6165953,2073.6,2072.8,4.0]
[1773331333957,0.6165953,2073.6,2072.7,2.68711682]
[1773331334146,0.6165953,2073.6,2073.0,0.001]
[1773331335667,1.82228616,2073.5,2073.0,0.001]
[1773331335874,0.6165953,2073.4,2073.0,0.001]
[1773331336375,1.20569086,2073.5,2073.0,0.001]
[1773331337084,2.52459454,2073.7,2073.0,2.5849586]
[1773331337572,0.6165953,2073.6,2073.0,1.20698158]
[1773331338144,0.6165953,2073.6,2073.0,1.20697982]
[1773331338438,0.6165953,2073.6,2073.0,0.001]
[1773331338901,0.6165953,2073.6,2072.4,7.40925222]
[1773331338902,0.6165953,2073.6,2072.0,1.2075138]
[1773331338903,0.6165953,2073.0,2072.0,1.2075138]
[1773331339039,0.6165953,2073.0,2072.0,5.2075138]
[1773331339243,0.6165953,2073.0,2072.0,5.20756181]
[1773331339465,0.6165953,2072.8,2072.0,0.001]
[1773331341480,3.15834716,2073.1,2072.0,0.001]
[1773331341682,4.82401081,2073.0,2072.2,2.5839586]
[1773331341846,5.45737631,2073.0,2072.0,2.5849586]
[1773331342253,0.6333655,2072.9,2072.0,0.001]
[1773331342453,0.6333655,2072.8,2072.0,0.001]
[1773331343670,0.6333655,2072.6,2072.0,0.001]
[1773331345673,0.6333655,2072.4,2071.8,0.001]
[1773331346342,0.6333655,2072.2,2071.8,0.001]
[1773331346539,0.6333655,2071.9,2071.5,0.01206865]
[1773331346767,0.6333655,2071.9,2071.2,0.001]
[1773331346976,0.6333655,2071.8,2071.2,0.001]
[1773331347140,1.32,2071.9,2071.2,1.2080115]
[1773331347344,1.9533655,2071.9,2071.2,1.2080115]
[1773331348246,0.6333655,2071.7,2071.2,0.001]
[1773331348549,0.6333655,2071.7,2071.0,0.01307167]
[1773331350386,1.84016217,2071.6,2071.0,0.01307167]
[1773331350883,1.84016217,2071.6,2071.0,1.22020895]
[1773331351264,1.20670485,2071.8,2071.4,0.001]
[1773331351463,1.8400303,2071.9,2071.4,0.001]
[1773331352889,0.6333655,2071.8,2071.0,0.01307167]
[1773331353368,0.6333655,2071.8,2071.0,1.22021491]
[1773331353764,6.43031345,2071.9,2071.0,1.22021491]
[1773331353765,1.2066648,2071.9,2071.0,1.22021491]
[1773331354157,1.2066648,2071.9,2071.0,1.26850076]
[1773331354380,1.2066648,2071.9,2071.0,1.89861282]
[1773331354689,6.15937435,2072.0,2071.2,3.21407066]
[1773331354690,1.33306865,2072.0,2071.2,3.21407066]
[1773331354873,1.33306865,2072.0,2071.4,1.20691319]
[1773331354874,0.01206865,2072.0,2071.4,1.20691319]
[1773331355066,0.01206865,2072.0,2071.5,0.04827418]
[1773331355263,1.21863403,2072.0,2071.3,1.2069333]
[1773331355662,0.01206865,2072.0,2071.3,1.83704536]
[1773331355868,1.21863307,2072.0,2071.3,1.83704536]
[1773331356274,0.01206865,2072.0,2071.3,1.83704536]
[1773331356673,1.21863668,2072.0,2071.3,1.83704536]
[1773331357594,0.01206865,2072.0,2071.3,1.83704536]
[1773331357890,1.21863655,2072.0,2071.3,1.83704536]
[1773331358090,0.01206865,2072.0,2071.3,1.83704536]
[1773331358392,1.21863483,2072.0,2071.3,1.83704536]
[1773331359169,1.21863483,2072.0,2071.0,1.22020507]
[1773331359170,0.6333655,2071.8,2071.0,1.22020507]
[1773331359495,1.21863483,2072.0,2071.0,1.22020507]
[1773331359496,0.6333655,2071.7,2071.0,1.22020507]
[1773331359675,0.6333655,2071.7,2071.0,0.01307167]
[1773331360670,0.6333655,2071.6,2071.0,0.01307167]
[1773331361071,0.6333655,2071.4,2071.0,0.01307167]
[1773331363195,1.20697146,2071.3,2071.0,0.01307167]
[1773331363787,1.79583926,2071.3,2071.0,0.01307167]
[1773331363975,1.20697146,2071.3,2071.0,0.01307167]
[1773331364800,1.20697146,2071.3,2071.2,0.001]
[1773331365203,0.5888678,2071.3,2070.7,0.001]
[1773331367302,0.5888678,2071.3,2070.4,1.79385441]
[1773331367303,0.5888678,2071.0,2070.4,0.01207468]
[1773331367471,0.5888678,2070.9,2070.4,0.01207468]
[1773331368084,0.5888678,2070.9,2069.9,1.22081901]
[1773331368475,0.5888678,2070.9,2069.9,1.79514524]
[1773331368932,0.5888678,2070.9,2069.9,1.22081901]
[1773331369282,1.20726289,2070.8,2069.9,1.79514524]
[1773331369582,1.20715723,2071.0,2070.1,0.57432623]
[1773331369807,0.5888678,2071.3,2070.3,0.57432623]
[1773331369808,1.20702974,2071.2,2070.3,0.57432623]
[1773331369979,0.01207167,2071.5,2070.7,0.57432623]
[1773331370178,1.21893049,2071.5,2070.7,0.57432623]
[1773331370432,0.01207167,2071.5,2070.7,0.57432623]
[1773331370709,0.01207167,2071.5,2070.6,0.60319919]
[1773331370710,1.78889604,2071.5,2070.6,0.60319919]
[1773331370909,0.01207167,2071.5,2070.7,0.60319919]
[1773331371113,0.002,2071.7,2071.0,0.60319919]
[1773331371413,0.002,2071.7,2071.1,1.81028721]
[1773331371613,0.002,2071.7,2070.7,1.81052038]
[1773331371813,0.57195552,2071.7,2070.7,1.81052038]
[1773331372012,0.57195552,2071.7,2070.8,2.77723921]
[1773331372185,0.57195552,2071.7,2070.8,2.5839586]
[1773331372781,0.01207468,2071.0,2070.8,2.5839586]
[1773331372983,0.57195552,2071.7,2070.6,1.20733821]
[1773331373216,1.20685493,2071.5,2070.6,1.20733821]
[1773331373512,0.56995552,2071.4,2070.6,1.20733821]
[1773331373816,0.56995552,2071.4,2070.3,3.79148187]
[1773331373990,0.56995552,2071.2,2070.0,1.20772448]
[1773331374817,0.56995552,2071.0,2070.0,1.20772448]
[1773331375202,1.20720459,2070.9,2070.2,1.20761279]
[1773331375383,5.39863763,2071.0,2070.2,1.20761279]
[1773331375384,0.56995552,2071.5,2070.7,2.5839586]
[1773331375585,0.56995552,2071.5,2070.5,0.20052187]
[1773331377189,0.56995552,2071.5,2070.7,2.5839586]
[1773331377386,1.77684617,2071.5,2070.8,1.20726289]
[1773331378785,0.56995552,2071.5,2070.8,1.20726289]
[1773331378990,0.002,2071.7,2070.9,2.5839586]
[1773331378991,1.20874312,2071.7,2070.9,2.5839586]
[1773331379214,0.002,2071.7,2070.9,2.5839586]
[1773331379516,1.2087486,2071.7,2070.9,2.5839586]
[1773331379716,1.2087486,2071.7,2070.8,1.20726289]
[1773331379915,0.002,2071.7,2070.8,1.20726289]
[1773331380218,0.002,2071.9,2071.4,2.5839586]
[1773331380420,0.002,2071.9,2071.5,0.18936839]
[1773331380619,0.002,2072.2,2071.9,2.5839586]
[1773331381121,0.002,2072.2,2071.9,2.57188693]
[1773331381320,0.002,2072.2,2071.7,2.5839586]
[1773331381514,0.002,2072.2,2071.9,2.5839586]
[1773331381690,0.002,2072.2,2072.0,1.2065637]
[1773331382020,0.002,2072.2,2071.7,2.5839586]
[1773331383424,4.82657719,2072.8,2072.0,2.7687126]
[1773331383425,0.002,2072.8,2072.0,2.7687126]
[1773331383627,0.002,2072.8,2072.4,2.5839586]
[1773331383812,0.002,2072.8,2072.5,1.20627261]
[1773331383996,0.002,2073.0,2072.5,1.20627261]
[1773331384197,0.002,2073.0,2072.3,4.82510703]
[1773331384198,0.002,2073.0,2072.3,4.8254801]
[1773331385190,0.002,2073.0,2072.3,7.4094387]
[1773331386705,0.002,2073.0,2072.2,1.20644725]
[1773331386905,0.57195552,2073.0,2072.2,1.20644725]
[1773331387106,0.57195552,2073.0,2072.2,3.79040585]
[1773331388410,1.77599536,2072.9,2072.0,2.5839586]
[1773331389115,0.002,2073.0,2072.3,2.5839586]
[1773331389314,1.20799739,2073.0,2072.3,2.5839586]
[1773331389514,1.20799739,2073.0,2072.1,2.50364983]
[1773331389515,1.77795291,2073.0,2072.1,5.08760843]
[1773331389722,0.56995552,2072.9,2072.1,2.50364983]
[1773331390119,0.56995552,2072.9,2072.3,2.5839586]
[1773331390318,1.77599695,2072.9,2072.4,1.20633082]
[1773331390521,0.56995552,2072.8,2072.1,1.20646729]
[1773331390921,0.56995552,2072.8,2072.1,3.79042589]
[1773331392042,0.57195552,2072.8,2072.1,1.20646729]
[1773331392403,0.57195552,2072.8,2072.1,2.5839586]
[1773331392603,0.002,2072.8,2072.1,2.5839586]
[1773331392832,0.002,2072.8,2072.3,2.5839586]
[1773331393616,0.002,2072.8,2072.3,2.586842]
[1773331394129,0.002,2072.8,2072.1,5.09049183]
[1773331394334,0.002,2073.3,2072.7,2.586842]
[1773331394538,0.002,2074.1,2072.7,2.586842]
[1773331394539,0.002,2073.9,2073.0,2.586842]
[1773331394833,0.56995552,2073.8,2072.8,2.68509803]
[1773331395037,0.56995552,2073.8,2072.4,7.6402401]
[1773331395038,0.56995552,2073.7,2072.4,3.79312794]
[1773331395330,0.56995552,2073.6,2072.4,3.79312794]
[1773331396131,0.56995552,2073.5,2072.4,1.20628806]
[1773331396336,0.56995552,2073.5,2072.0,1.20651696]
[1773331396337,0.56995552,2073.1,2072.0,1.20651696]
[1773331396638,0.56995552,2073.1,2071.9,2.68662116]
[1773331396639,0.56995552,2072.8,2071.9,2.68662116]
[1773331398333,0.56995552,2072.8,2072.0,2.586842]
[1773331398535,1.77611174,2072.7,2072.1,1.20650547]
[1773331399036,0.56995552,2072.7,2072.1,1.20650547]
[1773331399612,0.56995552,2073.0,2072.1,1.20650547]
[1773331400737,1.20603984,2072.9,2072.1,1.20650547]
[1773331401137,0.56995552,2073.0,2072.3,2.586842]
[1773331401342,1.7759382,2073.0,2072.3,2.586842]
[1773331401518,0.56995552,2073.0,2072.3,2.586842]
[1773331401722,0.56995552,2073.0,2072.1,1.20650547]
[1773331401723,0.55460188,2073.6,2072.6,2.586842]
[1773331401927,0.55460188,2073.6,2072.9,2.586842]
[1773331402235,1.76012283,2073.8,2072.9,2.586842]
[1773331402637,1.76012283,2073.8,2073.0,1.20598166]
[1773331404142,1.76014396,2073.8,2073.0,1.20598166]
[1773331404345,0.55460188,2073.7,2072.6,1.20621441]
[1773331404719,0.55460188,2073.7,2072.4,8.89573471]
[1773331404720,0.55460188,2073.5,2072.4,5.27712732]
[1773331406722,0.55460188,2073.3,2072.4,5.27712732]
[1773331408750,0.55460188,2073.3,2072.7,2.586842]
[1773331409050,0.002,2073.6,2073.0,2.586842]
[1773331409554,0.55460188,2073.5,2072.6,1.20621441]
[1773331410323,0.55460188,2073.5,2072.5,4.82485766]
[1773331410324,0.55460188,2073.5,2072.5,1.2062294]
[1773331411052,0.55460188,2073.3,2072.5,1.2062294]
[1773331412554,0.55460188,2073.3,2072.4,8.89593247]
[1773331412555,0.55460188,2073.3,2072.4,2.69032078]
[1773331412946,0.55460188,2073.1,2072.4,2.69032078]
[1773331413326,0.55460188,2073.1,2072.4,5.27716278]
[1773331413531,1.2058251,2073.3,2072.7,2.586842]
[1773331413766,1.76035874,2073.4,2072.7,2.586842]
[1773331414174,1.76035874,2073.4,2072.4,5.27716278]
[1773331414462,0.55460188,2073.3,2072.4,5.27716278]
[1773331415058,1.7604672,2073.2,2072.4,5.27716278]
[1773331415754,0.55460188,2073.2,2072.4,5.27716278]
[1773331417136,1.76033994,2073.5,2072.8,2.586842]
[1773331417862,0.55460188,2073.5,2072.8,2.586842]
[1773331418058,1.76030816,2073.5,2072.8,2.586842]
[1773331418641,0.002,2073.2,2072.4,5.40310709]
[1773331418957,0.002,2073.2,2072.8,1.20609803]
[1773331419763,0.002,2073.2,2072.5,1.20625222]
[1773331419764,0.55660188,2073.2,2072.5,1.20625222]
[1773331420266,0.55660188,2073.2,2072.5,3.79309422]
[1773331420465,0.002,2073.4,2072.8,2.586842]
[1773331420879,0.55660188,2073.6,2073.1,2.586842]
[1773331421166,0.55660188,2073.6,2073.2,1.20586532]
[1773331421531,1.76223699,2073.6,2073.2,1.20586532]
[1773331421757,0.55460188,2073.5,2072.5,1.20615622]
[1773331422341,0.55460188,2073.5,2072.7,2.586842]
[1773331422758,0.55460188,2073.5,2072.8,0.01128896]
[1773331424179,0.002,2073.6,2073.0,2.586842]
[1773331424371,0.002,2073.9,2073.3,2.586842]
[1773331424867,0.002,2073.9,2073.1,1.488]
[1773331424868,0.52004577,2073.9,2073.1,1.488]
[1773331425275,0.002,2073.9,2073.1,2.01114042]
[1773331425482,0.002,2073.9,2073.3,2.586842]
[1773331426198,0.002,2073.9,2073.4,1.20574901]
[1773331426851,0.52004577,2073.9,2073.1,2.69387974]
[1773331427461,0.51804577,2073.8,2072.9,1.20599324]
[1773331428180,1.72361166,2073.8,2073.1,1.20592349]
[1773331428381,0.51804577,2073.8,2073.1,1.20592349]
[1773331428591,0.002,2073.9,2073.3,2.586842]
[1773331428759,0.002,2073.9,2073.1,1.72906391]
[1773331429288,0.002,2073.9,2073.4,2.586842]
[1773331429453,0.002,2073.9,2073.2,0.52314042]
[1773331429652,1.20746345,2073.9,2073.1,1.20592349]
[1773331429868,0.002,2073.9,2073.1,1.20592349]
[1773331430657,0.002,2073.9,2073.1,2.69492349]
[1773331430858,0.002,2073.9,2073.1,3.21813296]
[1773331431376,0.002,2074.1,2073.7,2.586842]
[1773331431577,0.54959869,2074.4,2073.7,2.586842]
[1773331431776,0.54959869,2074.4,2074.0,2.586842]
[1773331431777,0.002,2074.4,2074.0,2.586842]
[1773331431977,0.54959869,2074.7,2074.0,2.586842]
[1773331432180,0.002,2074.7,2074.0,2.586842]
[1773331432364,0.54959869,2074.7,2073.7,1.20557457]
[1773331432694,0.54959869,2074.7,2074.0,2.586842]
[1773331432854,0.54959869,2074.7,2073.7,1.72878404]
[1773331433055,0.54959869,2074.7,2073.7,1.20557457]
[1773331433487,0.54959869,2074.7,2073.6,1.20558588]
[1773331433677,0.002,2073.9,2073.6,1.20558588]
[1773331434293,0.002,2074.2,2073.6,1.20558588]
[1773331434596,0.002,2074.2,2073.7,2.586842]
[1773331436480,0.002,2074.2,2073.8,1.20551644]
[1773331437059,0.54959869,2074.2,2073.6,1.20560207]
[1773331437259,0.54959869,2074.2,2073.5,5.28149175]
[1773331437779,0.54959869,2074.2,2073.6,0.03656181]
[1773331437980,0.54959869,2074.2,2073.5,5.28149175]
[1773331438298,0.54959869,2074.2,2073.5,3.79249175]
[1773331438594,0.54959869,2074.2,2073.3,0.001]
[1773331438595,0.54759869,2074.0,2073.3,0.001]
[1773331438794,0.54759869,2074.0,2073.3,7.79364801]
[1773331439108,0.54759869,2074.0,2073.3,3.79364801]
[1773331439308,0.54759869,2074.0,2073.3,1.20680601]
[1773331439821,0.54759869,2074.0,2073.3,0.001]
[1773331440023,0.54759869,2073.8,2073.2,1.88722215]
[1773331440226,0.54759869,2073.8,2073.0,1.20697017]
[1773331440588,0.54759869,2073.6,2073.0,0.001]
[1773331440779,6.14051969,2074.1,2073.0,7.11105147]
[1773331440780,0.54759869,2074.0,2073.0,7.11105147]
[1773331441197,0.002,2074.2,2073.4,2.586842]
[1773331441375,0.002,2074.2,2073.7,2.586842]
[1773331441376,1.20729237,2074.2,2073.7,2.586842]
[1773331441708,1.20729237,2074.2,2073.5,2.586842]
[1773331441909,1.20729237,2074.2,2073.6,0.04637878]
[1773331442209,0.54759869,2074.1,2073.6,0.04637878]
[1773331442404,0.54759869,2074.1,2073.3,4.077842]
[1773331442609,0.54759869,2074.1,2073.5,1.20569086]
[1773331442610,1.20540019,2074.0,2073.5,1.20569086]
[1773331443012,1.75298694,2074.1,2073.5,1.20569086]
[1773331443208,1.75298694,2074.1,2073.6,0.04639408]
[1773331443401,1.75298694,2074.1,2073.5,1.20569086]
[1773331443785,1.75298694,2074.1,2073.6,0.01564696]
[1773331443786,1.75295222,2074.1,2073.6,0.01564696]
[1773331443985,1.20733013,2074.2,2073.6,0.01564696]
[1773331444187,1.20733013,2074.2,2073.5,1.20569086]
[1773331444384,1.75492882,2074.2,2073.5,1.20569086]
[1773331444585,0.54759869,2074.1,2073.4,1.20574901]
[1773331444792,0.54759869,2074.1,2073.3,2.6967649]
[1773331445296,0.54759869,2074.1,2073.0,5.20695426]
[1773331445297,0.54759869,2074.0,2073.0,5.20695426]
[1773331445612,0.54759869,2073.8,2073.0,1.20695426]
[1773331446199,0.54759869,2074.1,2073.3,2.586842]
[1773331446381,0.54759869,2074.1,2073.0,3.79379626]
[1773331446586,0.54759869,2073.9,2073.3,0.001]
[1773331447810,0.54759869,2073.8,2073.3,0.001]
[1773331448718,0.54759869,2073.6,2073.3,0.001]
[1773331449316,1.20546116,2073.9,2073.3,0.001]
[1773331449499,1.75305985,2073.9,2073.3,0.001]
[1773331449929,0.54759869,2073.9,2073.3,0.001]
[1773331450718,0.54759869,2073.7,2073.3,0.001]
[1773331450912,0.54759869,2073.7,2073.0,0.001]
[1773331452413,0.54759869,2073.6,2073.0,0.001]
[1773331452818,0.54759869,2073.4,2073.0,0.001]
[1773331453709,1.75320382,2073.7,2073.0,0.001]
[1773331454297,1.2055202,2073.8,2073.0,2.58667758]
[1773331454497,1.2055202,2073.8,2073.1,0.04823693]
[1773331454724,1.75311889,2073.8,2073.2,1.20586532]